fUSD/lending_fUSD_20260402
["ID","MTS","AMOUNT","RATE_DAILY","PERIOD"]
[419308696,1775140240803,-489.48414116,0.00013647,2]
[419308697,1775140240815,-17.77869669,0.00013647,2]
[419308698,1775140240824,-37.32,0.00013656,2]
[419308699,1775140240834,-150.0,0.00013669,2]
[419308700,1775140240843,-150.0,0.00013672,2]
[419308701,1775140240852,-323.59405555,0.00013673,2]
[419308702,1775140241145,-300.0,0.00013673,2]
[419308703,1775140241157,-374.9563676,0.00013673,2]
[419308707,1775140241559,-783.7821187,0.00013673,2]
[419308708,1775140241576,-1820.89468532,0.00013673,2]
[419308709,1775140241600,-79142.95447283,0.00013673,2]
[419308710,1775140241610,-150.0,0.00013687,2]
[419308711,1775140241619,-150.0,0.00013687,2]
[419308712,1775140241629,-150.0,0.00013693,2]
[419308713,1775140241639,-198.06220285,0.000137,2]
[419308714,1775140241649,-272.25522946,0.000137,2]
[419308715,1775140241660,-4637.5,0.000137,2]
[419308716,1775140241670,-150.0,0.00013712,2]
[419308717,1775140241679,-150.0,0.00013723,2]
[419308718,1775140241689,-150.0,0.00013729,2]
[419308719,1775140241699,-2147.5268,0.00013747,2]
[419308720,1775140241708,-150.0,0.0001375,2]
[419308721,1775140241718,-150.0,0.0001375,2]
[419308722,1775140241726,-150.0,0.0001375,2]
[419308723,1775140241735,-150.0,0.0001375,2]
[419308724,1775140241745,-150.0,0.00013758,2]
[419308725,1775140241754,-17015.4539305,0.00013763,2]
[419308726,1775140241763,-2395.28293795,0.00013763,2]
[419308727,1775140241773,-879.65842586,0.00013772,2]
[419308728,1775140241783,-150.0,0.00013777,2]
[419308729,1775140241794,-1200.0,0.000138,5]
[419308730,1775140241803,-150.0,0.00013813,2]
[419308731,1775140241814,-150.0,0.00013813,2]
[419308732,1775140241823,-150.0,0.00013813,2]
[419308733,1775140241832,-150.0,0.00013824,2]
[419308734,1775140241841,-150.0,0.00013831,2]
[419308735,1775140241850,-822.45,0.00013838,2]
[419308736,1775140241859,-500.0,0.00013838,2]
[419308737,1775140241869,-500.0,0.00013838,2]
[419308738,1775140241878,-500.0,0.00013838,2]
[419308739,1775140241887,-500.0,0.00013838,2]
[419308740,1775140241897,-500.0,0.00013838,2]
[419308741,1775140241906,-500.0,0.00013838,2]
[419308742,1775140241916,-500.0,0.00013838,2]
[419308743,1775140241926,-493.51314513,0.00013838,2]
[419308744,1775140241935,-151.0,0.00013838,2]
[419308745,1775140241944,-151.0,0.00013838,2]
[419308746,1775140241954,-151.0,0.00013838,2]
[419308747,1775140241963,-151.0,0.00013838,2]
[419308748,1775140241972,-151.0,0.00013838,2]
[419308749,1775140241982,-151.0,0.00013838,2]
[419308750,1775140241991,-151.0,0.00013838,2]
[419308751,1775140242000,-171.10274431,0.00013838,2]
[419308752,1775140242010,-151.0,0.00013844,2]
[419308753,1775140242019,-151.0,0.00013844,2]
[419308754,1775140242028,-151.0,0.00013844,2]
[419308755,1775140242038,-150.0,0.00013844,2]
[419308756,1775140242047,-150.0,0.00013844,2]
[419308757,1775140242056,-508.65862639,0.00013846,2]
[419308758,1775140242065,-500.0,0.00013846,2]
[419308759,1775140242075,-500.0,0.00013846,2]
[419308760,1775140242084,-500.0,0.00013846,2]
[419308761,1775140242093,-500.0,0.00013846,2]
[419308762,1775140242102,-500.0,0.00013846,2]
[419308763,1775140242112,-500.0,0.00013846,2]
[419308764,1775140242122,-500.0,0.00013846,2]
[419308765,1775140242131,-500.0,0.00013846,2]
[419308766,1775140242141,-500.0,0.00013846,2]
[419308767,1775140242152,-500.0,0.00013846,2]
[419308768,1775140242160,-500.0,0.00013846,2]
[419308769,1775140242170,-500.0,0.00013846,2]
[419308770,1775140242179,-500.0,0.00013846,2]
[419308771,1775140242189,-500.0,0.00013846,2]
[419308772,1775140242198,-500.0,0.00013846,2]
[419308773,1775140242207,-500.0,0.00013846,2]
[419308774,1775140242217,-500.0,0.00013846,2]
[419308775,1775140242228,-500.0,0.00013846,2]
[419308776,1775140242237,-500.0,0.00013846,2]
[419308777,1775140242246,-500.0,0.00013846,2]
[419308778,1775140242256,-500.0,0.00013846,2]
[419308779,1775140242266,-500.0,0.00013846,2]
[419308780,1775140242275,-500.0,0.00013846,2]
[419308781,1775140242283,-500.0,0.00013846,2]
[419308782,1775140242292,-500.0,0.00013846,2]
[419308783,1775140242302,-507.27121127,0.00013846,2]
[419308784,1775140242313,-500.0,0.00013846,2]
[419308785,1775140242322,-500.0,0.00013846,2]
[419308786,1775140242331,-500.0,0.00013846,2]
[419308787,1775140242341,-500.0,0.00013846,2]
[419308788,1775140242350,-500.0,0.00013846,2]
[419308789,1775140242359,-500.0,0.00013846,2]
[419308790,1775140242368,-500.0,0.00013846,2]
[419308791,1775140242377,-500.0,0.00013846,2]
[419308792,1775140242386,-316.76546514,0.00013846,2]
[419308793,1775140242395,-500.0,0.00013846,2]
[419308794,1775140242405,-500.0,0.00013846,2]
[419308795,1775140242414,-500.0,0.00013846,2]
[419308796,1775140242423,-500.0,0.00013846,2]
[419308797,1775140242432,-500.0,0.00013846,2]
[419308798,1775140242441,-500.0,0.00013846,2]
[419308799,1775140242451,-500.0,0.00013846,2]
[419308800,1775140242460,-500.0,0.00013846,2]
[419308801,1775140242469,-500.0,0.00013846,2]
[419308802,1775140242479,-500.0,0.00013846,2]
[419308803,1775140242488,-500.0,0.00013846,2]
[419308804,1775140242497,-500.0,0.00013846,2]
[419308805,1775140242507,-150.0,0.00013863,2]
[419308806,1775140242516,-166.66,0.0001387,2]
[419308807,1775140242526,-500.0,0.00013873,2]
[419308808,1775140242535,-500.0,0.00013873,2]
[419308809,1775140242544,-599.98869951,0.00013873,2]
[419308810,1775140242553,-500.0,0.00013873,2]
[419308811,1775140242563,-150.0,0.00013876,2]
[419308812,1775140242572,-150.0,0.00013876,2]
[419308813,1775140242582,-150.0,0.00013885,2]
[419308814,1775140242592,-150.0,0.00013889,2]
[419308815,1775140242601,-150.0,0.00013896,2]
[419308816,1775140242611,-2400.0,0.000139,5]
[419308817,1775140242772,-150.0,0.00013938,2]
[419308818,1775140242783,-150.0,0.00013938,2]
[419308819,1775140242793,-150.0,0.00013938,2]
[419308820,1775140242802,-150.0,0.00013938,2]
[419308821,1775140242811,-150.0,0.00013938,2]
[419308822,1775140242820,-156.32,0.00013941,2]
[419308823,1775140242830,-150.0,0.00013955,2]
[419308824,1775140242839,-150.0,0.00013992,2]
[419308825,1775140242849,-150.0,0.00014001,2]
[419308826,1775140242858,-150.0,0.00014001,2]
[419308827,1775140242868,-150.0,0.00014014,2]
[419308828,1775140242878,-150.0,0.0001402,2]
[419308829,1775140242888,-150.0,0.00014033,2]
[419308830,1775140242897,-150.0,0.00014033,2]
[419308831,1775140242906,-166.66,0.00014041,2]
[419308832,1775140242916,-150.0,0.00014046,2]
[419308833,1775140242926,-150.0,0.00014064,2]
[419308834,1775140242935,-150.0,0.00014064,2]
[419308835,1775140242945,-150.0,0.00014064,2]
[419308836,1775140242955,-150.0,0.00014064,2]
[419308837,1775140242964,-150.0,0.00014086,2]
[419308838,1775140242975,-150.0,0.000141,2]
[419308839,1775140242985,-2500.0,0.00014106,2]
[419308841,1775140242994,-2500.0,0.00014106,2]
[419308843,1775140243003,-300.0,0.00014106,2]
[419308844,1775140243012,-822.45,0.00014112,2]
[419308846,1775140243023,-150.0,0.00014127,2]
[419308848,1775140243033,-150.0,0.00014127,2]
[419308850,1775140243043,-150.0,0.00014127,2]
[419308852,1775140243053,-150.0,0.00014127,2]
[419308853,1775140243063,-150.0,0.00014151,2]
[419308854,1775140243073,-150.0,0.00014154,2]
[419308855,1775140243083,-150.0,0.00014164,2]
[419308856,1775140243093,-150.0,0.00014189,2]
[419308857,1775140243103,-150.0,0.00014189,2]
[419308858,1775140243112,-150.0,0.00014207,2]
[419308859,1775140243122,-166.66,0.00014212,2]
[419308860,1775140243132,-150.0,0.00014217,2]
[419308861,1775140243142,-150.0,0.00014221,2]
[419308862,1775140243152,-150.0,0.00014221,2]
[419308863,1775140243162,-150.0,0.00014231,2]
[419308864,1775140243171,-150.0,0.00014252,2]
[419308865,1775140243181,-150.0,0.00014252,2]
[419308866,1775140243191,-150.0,0.00014261,2]
[419308867,1775140243201,-150.0,0.00014282,2]
[419308868,1775140243210,-150.0,0.000143,2]
[419308869,1775140243220,-500.0,0.00014313,2]
[419308870,1775140243231,-500.0,0.00014313,2]
[419308871,1775140243241,-150.0,0.00014315,2]
[419308872,1775140243250,-150.0,0.00014315,2]
[419308873,1775140243260,-150.0,0.00014315,2]
[419308874,1775140243269,-150.0,0.00014315,2]
[419308875,1775140243279,-150.0,0.00014315,2]
[419308876,1775140243287,-150.0,0.00014315,2]
[419308877,1775140243297,-150.0,0.00014315,2]
[419308878,1775140243306,-150.0,0.00014315,2]
[419308879,1775140243315,-30973.96,0.00014321,2]
[419308880,1775140243325,-150.0,0.00014348,2]
[419308881,1775140243335,-150.0,0.00014369,2]
[419308882,1775140243344,-150.0,0.00014378,2]
[419308883,1775140243354,-150.0,0.00014378,2]
[419308884,1775140243363,-166.66,0.00014383,2]
[419308885,1775140243372,-822.45,0.00014386,2]
[419308886,1775140243382,-150.0,0.00014395,2]
[419308887,1775140243391,-150.0,0.00014399,2]
[419308888,1775140243400,-150.0,0.00014409,2]
[419308889,1775140243410,-150.0,0.00014409,2]
[419308890,1775140243419,-150.0,0.00014413,2]
[419308891,1775140243429,-150.0,0.00014423,2]
[419308892,1775140243438,-150.0,0.00014441,2]
[419308893,1775140243448,-150.0,0.00014441,2]
[419308894,1775140243458,-150.0,0.00014466,2]
[419308895,1775140243467,-150.0,0.00014477,2]
[419308896,1775140243476,-150.0,0.00014479,2]
[419308897,1775140243486,-150.0,0.00014503,2]
[419308898,1775140243495,-150.0,0.00014503,2]
[419308899,1775140243504,-150.0,0.00014503,2]
[419308900,1775140243514,-150.0,0.00014503,2]
[419308901,1775140243524,-150.0,0.0001453,2]
[419308902,1775140243533,-150.0,0.00014544,2]
[419308903,1775140243543,-166.66,0.00014554,2]
[419308904,1775140243552,-659.37456195,0.00014556,4]
[419308905,1775140243562,-150.0,0.00014566,2]
[419308906,1775140243571,-150.0,0.00014566,2]
[419308907,1775140243581,-150.0,0.00014566,2]
[419308908,1775140243592,-150.0,0.00014566,2]
[419308909,1775140243602,-150.0,0.00014584,2]
[419308910,1775140243612,-150.0,0.00014598,2]
[419308911,1775140243621,-150.0,0.00014598,2]
[419308912,1775140243631,-150.0,0.0001461,2]
[419308913,1775140243640,-150.0,0.00014616,2]
[419308914,1775140243650,-150.0,0.00014629,2]
[419308915,1775140243659,-150.0,0.00014629,2]
[419308916,1775140243669,-150.0,0.00014638,2]
[419308917,1775140243678,-822.45,0.0001466,2]
[419308918,1775140243688,-150.0,0.00014675,2]
[419308919,1775140243697,-150.0,0.00014692,2]
[419308920,1775140243707,-150.0,0.00014692,2]
[419308921,1775140243716,-150.0,0.00014692,2]
[419308922,1775140243726,-150.0,0.00014692,2]
[419308923,1775140243739,-150.0,0.00014692,2]
[419308924,1775140243749,-150.0,0.00014734,2]
[419308925,1775140243759,-150.0,0.00014741,2]
[419308926,1775140243769,-1000.0,0.00014743,2]
[419308927,1775140243779,-150.0,0.00014746,2]
[419308928,1775140243789,-150.0,0.00014755,2]
[419308929,1775140243798,-150.0,0.00014755,2]
[419308930,1775140243808,-150.0,0.00014767,2]
[419308931,1775140243818,-17015.45393048,0.00014782,2]
[419308932,1775140243827,-150.0,0.00014786,2]
[419308933,1775140243839,-150.0,0.00014786,2]
[419308934,1775140243848,-255.0,0.00014793,2]
[419308935,1775140243858,-150.0,0.00014799,2]
[419308936,1775140243868,-150.0,0.00014806,2]
[419308937,1775140243879,-150.0,0.00014817,2]
[419308938,1775140243889,-150.0,0.00014817,2]
[419308939,1775140243899,-150.0,0.00014817,2]
[419308940,1775140243909,-150.0,0.00014853,2]
[419308941,1775140243919,-150.0,0.00014872,2]
[419308942,1775140243929,-150.0,0.0001488,2]
[419308943,1775140243938,-150.0,0.0001488,2]
[419308944,1775140243948,-150.0,0.0001488,2]
[419308945,1775140243958,-150.0,0.0001488,2]
[419308946,1775140243967,-3600.0,0.000149,5]
[419308947,1775140243978,-150.0,0.00014901,2]
[419308948,1775140243988,-150.0,0.00014907,2]
[419308949,1775140243998,-150.0,0.00014918,2]
[419308950,1775140244008,-822.45,0.00014934,2]
[419308951,1775140244018,-150.0,0.00014937,2]
[419308952,1775140244027,-150.0,0.00014943,2]
[419308953,1775140244037,-150.0,0.00014943,2]
[419308954,1775140244046,-150.0,0.00014961,2]
[419308955,1775140244056,-150.0,0.00014974,2]
[419308956,1775140244065,-150.0,0.00014974,2]
[419308957,1775140244074,-300.0,0.00015,2]
[419308958,1775140244083,-150.0,0.00015003,2]
[419308959,1775140244093,-150.0,0.00015006,2]
[419308960,1775140244102,-150.0,0.00015006,2]
[419308961,1775140244111,-300.0,0.00015012,2]
[419308962,1775140244120,-2500.0,0.00015012,2]
[419308963,1775140244130,-2500.0,0.00015012,2]
[419308964,1775140244140,-2490.38564404,0.00015012,2]
[419308965,1775140244151,-156.32,0.00015014,2]
[419308966,1775140244160,-150.0,0.00015015,2]
[419308967,1775140244169,-181.57731619,0.00015068,2]
[419308968,1775140244179,-166.82455666,0.00015068,2]
[419308969,1775140244188,-281.16474898,0.00015068,2]
[419308970,1775140244197,-245.82237456,0.00015068,2]
[419308971,1775140244207,-150.0,0.00015068,2]
[419308972,1775140244217,-271.77999525,0.00015068,2]
[419308973,1775140244226,-150.33671718,0.00015068,2]
[419308974,1775140244235,-150.0,0.00015068,2]
[419308975,1775140244245,-150.45798406,0.00015068,2]
[419308976,1775140244255,-259.76098773,0.00015068,2]
[419308977,1775140244264,-194.85681719,0.00015068,2]
[419308978,1775140244274,-252.57876589,0.00015068,2]
[419308979,1775140244284,-150.00000001,0.00015068,2]
[419308980,1775140244293,-800.0,0.00015068,2]
[419308981,1775140244303,-500.0,0.00015075,2]
[419308982,1775140244313,-477.38172344,0.00015201,2]
[419308983,1775140244322,-10000.0,0.00015205,2]
[419308984,1775140244331,-822.45,0.00015208,2]
[419308985,1775140244341,-9999.99,0.0001531,2]
[419308986,1775140244351,-9999.99,0.0001531,2]
[419308987,1775140244361,-150.99,0.0001531,2]
[419308988,1775140244371,-150.99,0.0001531,2]
[419308989,1775140244381,-351.34,0.0001531,2]
[419308990,1775140244391,-4999.99,0.0001531,2]
[419308991,1775140244401,-999.99,0.0001531,2]
[419308993,1775140244410,-9999.99,0.0001531,2]
[419308994,1775140244420,-299.99,0.0001531,2]
[419308995,1775140244430,-18184.57,0.0001531,2]
[419308996,1775140244440,-212.89352784,0.00015323,2]
[419308997,1775140244450,-177.7,0.00015336,2]
[419308998,1775140244459,-229.96408905,0.00015439,2]
[419308999,1775140244469,-500.0,0.00015467,2]
[419309000,1775140244478,-822.45,0.00015482,2]
[419309001,1775140244488,-173.9876,0.000155,7]
[419309002,1775140244497,-167.85446765,0.0001555,2]
[419309003,1775140244507,-472.3535167,0.00015741,2]
[419309004,1775140244518,-822.46567624,0.00015756,2]
[419309005,1775140244528,-295.11704399,0.00015757,2]
[419309006,1775140244539,-17015.45393048,0.00015802,2]
[419309007,1775140244549,-33991.59494816,0.00015857,2]
[419309008,1775140244560,-160.0,0.00015874,2]
[419309009,1775140244570,-24984.01404667,0.0001594,2]
[419309010,1775140244579,-666.0,0.00015957,2]
[419309011,1775140244590,-500.0,0.00015957,2]
[419309012,1775140244600,-233577.8489235,0.00015958,2]
[419309013,1775140244609,-500.0,0.00015967,2]
[419309014,1775140244619,-560.26992901,0.00015967,2]
[419309015,1775140244629,-3590.3243805,0.00015968,2]
[419309016,1775140244638,-500.48771159,0.00015973,2]
[419309017,1775140244647,-500.0,0.00015973,2]
[419309018,1775140244657,-500.0,0.00015973,2]
[419309019,1775140244667,-500.0,0.00015973,2]
[419309020,1775140244676,-500.0,0.00015973,2]
[419309021,1775140244685,-500.0,0.00015973,2]
[419309022,1775140244695,-500.0,0.00015973,2]
[419309023,1775140244705,-500.0,0.00015973,2]
[419309024,1775140244715,-500.0,0.00015973,2]
[419309025,1775140244724,-500.0,0.00015973,2]
[419309026,1775140244734,-500.0,0.00015973,2]
[419309027,1775140244743,-384.73655496,0.00015973,2]
[419309028,1775140244753,-500.0,0.00015973,2]
[419309029,1775140244762,-500.62845859,0.00015973,2]
[419309030,1775140244772,-500.0,0.00015973,2]
[419309031,1775140244781,-500.0,0.00015973,2]
[419309032,1775140244791,-500.0,0.00015973,2]
[419309033,1775140244800,-500.0,0.00015973,2]
[419309034,1775140244810,-500.0,0.00015973,2]
[419309035,1775140244819,-500.0,0.00015973,2]
[419309036,1775140244829,-500.0,0.00015999,2]
[419309037,1775140244840,-500.0,0.00015999,2]
[419309038,1775140244850,-500.0,0.00015999,2]
[419309039,1775140244860,-433.75,0.00015999,2]
[419309040,1775140244869,-417.26300613,0.00016,2]
[419309041,1775140244879,-433.0,0.0001601,2]
[419309042,1775140244889,-156.32,0.00016086,2]
[419309043,1775140244899,-200.0,0.000161,2]
[419309044,1775140244908,-200.0,0.000161,2]
[419309045,1775140244918,-1000.0,0.000161,2]
[419309046,1775140244927,-1000.0,0.000161,2]
[419309047,1775140244937,-288.09023334,0.000161,2]
[419309048,1775140244947,-1369.59255357,0.000161,2]
[419309049,1775140244956,-166.66,0.00016102,2]
[419309050,1775140244966,-9999.99,0.00016116,2]
[419309051,1775140244975,-1289.53447238,0.00016164,2]
[419309052,1775140244985,-1525.74412,0.0001617,2]
[419309053,1775140244994,-500.0,0.00016173,2]
[419309054,1775140245004,-500.0,0.00016199,2]
[419309055,1775140245014,-402.1199774,0.00016199,2]
[419309056,1775140245023,-500.0,0.00016199,2]
[419309057,1775140245033,-508.0,0.000162,2]
[419309058,1775140245042,-2000.0,0.000162,2]
[419309059,1775140245052,-3022.72,0.00016256,2]
[419309060,1775140245062,-200.0,0.00016261,2]
[419309061,1775140245071,-2000.0,0.000163,2]
[419309062,1775140245080,-176.51,0.00016347,2]
[419309063,1775140245090,-666.0,0.00016378,2]
[419309064,1775140245099,-2000.0,0.000164,2]
[419309065,1775140245108,-200.0,0.00016424,2]
[419309066,1775140245118,-897.7,0.00016438,2]
[419309067,1775140245128,-166.89,0.00016438,2]
[419309068,1775140245138,-2500.0,0.00016438,2]
[419309069,1775140245148,-2500.0,0.00016438,2]
[419309070,1775140245158,-2500.0,0.00016438,2]
[419309071,1775140245167,-2227.75818254,0.00016438,2]
[419309072,1775140245177,-152.59,0.00016438,2]
[419309073,1775140245186,-250.0,0.00016438,2]
[419309074,1775140245196,-150.0,0.000165,2]
[419309075,1775140245205,-21965.31005142,0.000165,5]
[419309076,1775140245215,-555.98551723,0.00016521,2]
[419309077,1775140245224,-1000.0,0.00016521,2]
[419309078,1775140245234,-500.96174367,0.00016521,2]
[419309079,1775140245243,-357.2823536,0.00016521,2]
[419309080,1775140245254,-500.0,0.00016521,2]
[419309081,1775140245264,-501.4995107,0.00016521,2]
[419309082,1775140245274,-501.1834914,0.00016521,2]
[419309083,1775140245285,-502.46451115,0.00016521,2]
[419309084,1775140245294,-1000.0,0.00016521,2]
[419309085,1775140245305,-1000.0,0.00016521,2]
[419309086,1775140245314,-582.86950942,0.00016521,2]
[419309087,1775140245323,-2809.0,0.00016542,2]
[419309088,1775140245333,-166.66,0.00016586,2]
[419309089,1775140245344,-200.0,0.00016588,2]
[419309090,1775140245355,-176.51,0.00016594,2]
[419309091,1775140245364,-277.0,0.000167,7]
[419309092,1775140245374,-201.8113,0.000167,12]
[419309093,1775140245384,-157.09,0.00016712,2]
[419309094,1775140245394,-722.96972885,0.00016721,2]
[419309095,1775140245405,-881.27,0.00016744,2]
[419309096,1775140245415,-1354.65118905,0.0001677,2]
[419309097,1775140245424,-192.72,0.00016817,2]
[419309098,1775140245433,-17015.45393048,0.00016821,2]
[419309099,1775140245442,-2809.0,0.00016862,2]
[419309100,1775140245453,-500.0,0.00016873,2]
[419309101,1775140245464,-590.83132733,0.00016873,2]
[419309102,1775140245473,-500.0,0.00016873,2]
[419309103,1775140245482,-150.0,0.00016873,2]
[419309104,1775140245492,-500.0,0.00016873,2]
[419309105,1775140245501,-500.0,0.00016873,2]
[419309106,1775140245511,-500.0,0.00016873,2]
[419309107,1775140245520,-4800.0,0.000169,6]
[419309108,1775140245530,-4137.87368186,0.000169,2]
[419309109,1775140245540,-4372.08142195,0.000169,2]
[419309110,1775140245549,-1109.87829233,0.000169,2]
[419309111,1775140245558,-263.72751144,0.000169,2]
[419309112,1775140245567,-151.0,0.00016919,2]
[419309113,1775140245577,-500.0,0.00016921,2]
[419309114,1775140245586,-7348.76,0.00016922,2]
[419309115,1775140245595,-4817.47,0.00016922,2]
[419309116,1775140245604,-3022.72,0.00016963,2]
[419309117,1775140245614,-700.0,0.0001697,2]
[419309118,1775140245623,-500.0,0.00016972,2]
[419309119,1775140245632,-500.0,0.00016973,2]
[419309120,1775140245642,-500.0,0.00016973,2]
[419309121,1775140246091,-337.66380378,0.00016973,2]
[419309122,1775140246115,-500.0,0.00016973,2]
[419309123,1775140246125,-500.0,0.00016973,2]
[419309124,1775140246134,-500.0,0.00016973,2]
[419309125,1775140246144,-500.0,0.00016973,2]
[419309126,1775140246154,-201.1346108,0.0001699,2]
[419309127,1775140246163,-151.0,0.00016997,2]
[419309128,1775140246179,-182.598912,0.00016997,2]
[419309129,1775140246189,-500.0,0.00016999,2]
[419309130,1775140246200,-500.0,0.00016999,2]
[419309131,1775140246210,-500.0,0.00016999,2]
[419309132,1775140246219,-500.0,0.00016999,2]
[419309133,1775140246229,-500.0,0.00016999,2]
[419309134,1775140246240,-300.0,0.00016999,2]
[419309135,1775140246250,-300.0,0.00016999,2]
[419309136,1775140246259,-300.0,0.00016999,2]
[419309137,1775140246269,-300.0,0.00016999,2]
[419309138,1775140246279,-300.0,0.00016999,2]
[419309139,1775140246289,-300.0,0.00016999,2]
[419309140,1775140246299,-300.0,0.00016999,2]
[419309141,1775140246309,-300.0,0.00016999,2]
[419309142,1775140246319,-700.13141753,0.00016999,2]
[419309143,1775140246329,-500.0,0.00016999,2]
[419309144,1775140246339,-500.0,0.00016999,2]
[419309145,1775140246349,-500.0,0.00016999,2]
[419309146,1775140246359,-500.0,0.00016999,2]
[419309147,1775140246368,-1034772.56094394,0.00017,2]
[419309148,1775140246378,-5961.60884521,0.00017,2]
[419309149,1775140246388,-151.0,0.00017,2]
[419309150,1775140246398,-151.0,0.00017,2]
[419309151,1775140246408,-151.0,0.00017,2]
[419309152,1775140246418,-191.848995,0.00017,2]
[419309153,1775140246428,-151.0,0.00017,2]
[419309154,1775140246438,-151.0,0.00017,2]
[419309155,1775140246448,-151.0,0.00017,2]
[419309156,1775140246458,-151.0,0.00017,2]
[419309157,1775140246468,-172.002255,0.00017,2]
[419309158,1775140246478,-151.0,0.00017,2]
[419309159,1775140246488,-386.467739,0.00017,2]
[419309160,1775140246498,-386.467739,0.00017,2]
[419309161,1775140246508,-386.467739,0.00017,2]
[419309162,1775140246519,-386.467739,0.00017,2]
[419309163,1775140246528,-601.163208,0.00017,2]
[419309164,1775140246538,-601.163208,0.00017,2]
[419309165,1775140246549,-974.775758,0.00017,2]
[419309166,1775140246558,-601.163208,0.00017,2]
[419309167,1775140246568,-601.163208,0.00017,2]
[419309168,1775140246578,-974.775758,0.00017,2]
[419309169,1775140246587,-974.775758,0.00017,2]
[419309170,1775140246598,-974.775758,0.00017,2]
[419309171,1775140246608,-350.0,0.00017,2]
[419309172,1775140246618,-151.0,0.00017,2]
[419309173,1775140246628,-151.0,0.00017,2]
[419309174,1775140246637,-151.0,0.00017,2]
[419309175,1775140246647,-151.0,0.00017,2]
[419309176,1775140246656,-151.0,0.00017,2]
[419309177,1775140246666,-151.0,0.00017,2]
[419309178,1775140246680,-580.661962,0.00017,2]
[419309179,1775140246690,-580.661962,0.00017,2]
[419309180,1775140246701,-580.661962,0.00017,2]
[419309181,1775140246711,-580.661962,0.00017,2]
[419309182,1775140246722,-151.0,0.00017,2]
[419309183,1775140246732,-151.0,0.00017,2]
[419309184,1775140246743,-2000.0,0.00017003,2]
[419309185,1775140246753,-880.73,0.00017018,2]
[419309186,1775140246763,-1500.0,0.00017068,2]
[419309187,1775140246773,-1500.0,0.00017068,2]
[419309188,1775140246783,-166.66,0.00017069,2]
[419309189,1775140246793,-300.0,0.00017099,2]
[419309190,1775140246803,-300.0,0.00017099,2]
[419309191,1775140246813,-300.0,0.00017099,2]
[419309192,1775140246824,-300.0,0.00017099,2]
[419309193,1775140246834,-300.0,0.00017099,2]
[419309194,1775140246844,-300.0,0.00017099,2]
[419309195,1775140246855,-300.0,0.00017099,2]
[419309196,1775140246865,-300.0,0.00017099,2]
[419309197,1775140246875,-44122.44625457,0.000171,2]
[419309198,1775140246886,-156.32,0.00017159,2]
[419309199,1775140246897,-295.0,0.00017236,2]
[419309200,1775140246907,-736.0,0.00017322,2]
[419309201,1775140246917,-369.0,0.00017381,2]
[419309202,1775140246927,-1600.0,0.00017409,2]
[419309203,1775140246937,-150.0,0.00017421,2]
[419309204,1775140246947,-306.99886496,0.00017421,2]
[419309205,1775140246957,-700.0,0.0001747,2]